fUST/lending_fUST_20250328
["ID","MTS","AMOUNT","RATE_DAILY","PERIOD"]
[356761480,1743137231530,-234.89456865,0.00035616,17]
[356761481,1743137231552,-500.0,0.00035616,17]
[356761482,1743137231573,-500.0,0.00035616,17]
[356761483,1743137231594,-500.0,0.00035616,17]
[356761484,1743137231614,-500.0,0.00035616,17]
[356761485,1743137231635,-500.0,0.00035616,17]
[356761486,1743137231656,-500.0,0.00035616,17]
[356761487,1743137231676,-500.0,0.00035616,17]
[356761488,1743137231701,-500.0,0.00035616,17]
[356761489,1743137231723,-500.0,0.00035616,17]
[356761490,1743137231744,-500.0,0.00035616,17]
[356761491,1743137231765,-243.41518977,0.00035616,17]
[356761492,1743137231785,-500.0,0.00035616,17]
[356761493,1743137231805,-500.0,0.00035616,17]
[356761494,1743137231827,-500.0,0.00035616,17]
[356761495,1743137231851,-500.0,0.00035616,17]
[356761496,1743137231872,-500.0,0.00035616,17]
[356761497,1743137231893,-500.0,0.00035616,17]
[356761498,1743137231915,-500.0,0.00035616,5]
[356761499,1743137231935,-500.0,0.00035616,17]
[356761500,1743137231958,-500.0,0.00035616,17]
[356761501,1743137231978,-858.91,0.00035616,17]
[356761502,1743137231998,-500.0,0.00035616,17]
[356761503,1743137232020,-500.0,0.00035616,17]
[356761504,1743137232041,-525.79185196,0.00035616,17]
[356761505,1743137232062,-609.11,0.00035616,17]
[356761506,1743137232082,-500.0,0.00035616,17]
[356761507,1743137232103,-500.0,0.00035616,17]
[356761508,1743137232124,-726.06,0.00035616,17]
[356761509,1743137232145,-500.0,0.00035616,17]
[356761510,1743137232166,-896.78,0.00035616,17]
[356761511,1743137232186,-500.0,0.00035616,17]
[356761512,1743137232215,-500.0,0.00035616,17]
[356761513,1743137232236,-500.0,0.00035616,17]
[356761514,1743137232256,-500.0,0.00035616,17]
[356761515,1743137232277,-500.0,0.00035616,17]
[356761516,1743137232297,-500.0,0.00035616,17]
[356761517,1743137232318,-500.0,0.00035616,17]
[356761518,1743137232339,-500.0,0.00035616,17]
[356761519,1743137232359,-758.65,0.00035616,17]
[356761520,1743137232379,-500.0,0.00035616,17]
[356761521,1743137232399,-1494.81,0.00035616,17]
[356761522,1743137232418,-500.0,0.00035616,17]
[356761523,1743137232443,-500.0,0.00035616,17]
[356761524,1743137232465,-500.0,0.00035616,17]
[356761525,1743137232486,-500.0,0.00035616,17]
[356761526,1743137232507,-500.0,0.00035616,17]
[356761527,1743137232528,-3883.14,0.00035616,17]
[356761528,1743137232548,-500.0,0.00035616,17]
[356761529,1743137232568,-500.0,0.00035616,17]
[356761530,1743137232589,-500.0,0.00035616,17]
[356761531,1743137232610,-500.0,0.00035616,17]
[356761532,1743137232631,-1655.42,0.00035616,17]
[356761533,1743137232651,-500.0,0.00035616,17]
[356761534,1743137232673,-500.0,0.00035616,17]
[356761535,1743137232699,-500.0,0.00035616,17]
[356761536,1743137232720,-543.21563247,0.00035616,17]
[356761537,1743137232741,-1407.99,0.00035616,17]
[356761538,1743137232762,-500.0,0.00035616,17]
[356761539,1743137232783,-500.0,0.00035616,17]
[356761540,1743137232803,-500.0,0.00035616,17]
[356761541,1743137232828,-500.0,0.00035616,17]
[356761542,1743137232848,-500.0,0.00035616,17]
[356761543,1743137232870,-380.06359468,0.00035616,17]
[356761544,1743137233397,-119.93640532,0.00035616,17]
[356761545,1743137233419,-500.0,0.00035616,17]
[356761546,1743137233444,-500.0,0.00035616,17]
[356761547,1743137233467,-500.0,0.00035616,17]
[356761548,1743137233489,-500.0,0.00035616,17]
[356761549,1743137233511,-500.0,0.00035616,17]
[356761550,1743137233531,-500.0,0.00035616,17]
[356761551,1743137233552,-500.0,0.00035616,17]
[356761552,1743137233574,-2011.63,0.00035616,17]
[356761553,1743137233595,-500.0,0.00035616,17]
[356761554,1743137233617,-309.80155915,0.00035616,17]
[356761555,1743137233638,-759.65,0.00035616,17]
[356761556,1743137233660,-500.0,0.00035616,17]
[356761557,1743137233681,-7848.6,0.00035616,2]
[356761558,1743137233707,-500.0,0.00035616,17]
[356761559,1743137233729,-500.0,0.00035616,17]
[356761560,1743137233752,-500.0,0.00035616,17]
[356761561,1743137233775,-519.18,0.00035616,17]
[356761562,1743137233797,-687.86,0.00035616,17]
[356761563,1743137233819,-500.0,0.00035616,17]
[356761564,1743137233844,-500.0,0.00035616,17]
[356761565,1743137233865,-500.0,0.00035616,17]
[356761566,1743137233886,-1981.89,0.00035616,17]
[356761567,1743137233907,-1186.13,0.00035616,17]
[356761568,1743137233928,-500.0,0.00035616,17]
[356761569,1743137233954,-500.0,0.00035616,17]
[356761570,1743137233975,-500.0,0.00035616,17]
[356761571,1743137233997,-575.49931816,0.00035616,17]
[356761572,1743137234022,-500.0,0.00035616,17]
[356761573,1743137234042,-500.0,0.00035616,17]
[356761574,1743137234063,-500.0,0.00035616,17]
[356761575,1743137234084,-2282.69,0.00035616,17]
[356761576,1743137234105,-500.0,0.00035616,17]
[356761577,1743137234126,-500.0,0.00035616,17]
[356761578,1743137234148,-500.0,0.00035616,17]
[356761579,1743137234169,-516.34558957,0.00035616,17]
[356761580,1743137234194,-500.0,0.00035616,17]
[356761581,1743137234215,-500.0,0.00035616,17]
[356761582,1743137234236,-2183.36,0.00035616,17]
[356761583,1743137234258,-500.0,0.00035616,17]
[356761584,1743137234279,-500.0,0.00035616,17]
[356761585,1743137234300,-500.0,0.00035616,17]
[356761586,1743137234321,-500.0,0.00035616,17]
[356761587,1743137234343,-500.0,0.00035616,17]
[356761588,1743137234364,-1664.16,0.00035616,17]
[356761589,1743137234385,-500.0,0.00035616,17]
[356761590,1743137234406,-2483.2,0.00035616,17]
[356761591,1743137234428,-1586.16,0.00035616,17]
[356761592,1743137234454,-500.0,0.00035616,17]
[356761593,1743137234476,-500.0,0.00035616,17]
[356761594,1743137234497,-500.0,0.00035616,17]
[356761595,1743137234520,-500.0,0.00035616,17]
[356761596,1743137234543,-500.0,0.00035616,17]
[356761597,1743137234565,-500.0,0.00035616,17]
[356761598,1743137234587,-1609.36,0.00035616,17]
[356761599,1743137234608,-500.0,0.00035616,17]
[356761600,1743137234630,-500.0,0.00035616,17]
[356761601,1743137234651,-500.0,0.00035616,17]
[356761602,1743137234674,-500.0,0.00035616,17]
[356761603,1743137234699,-765.4,0.00035616,17]
[356761604,1743137234722,-500.0,0.00035616,17]
[356761605,1743137234743,-500.0,0.00035616,17]
[356761606,1743137234765,-151.0,0.00035616,14]
[356761607,1743137234787,-500.0,0.00035616,17]
[356761608,1743137234808,-500.0,0.00035616,17]
[356761609,1743137234836,-500.0,0.00035616,17]
[356761610,1743137234859,-500.0,0.00035616,17]
[356761611,1743137234880,-500.0,0.00035616,17]
[356761612,1743137234903,-500.0,0.00035616,17]
[356761613,1743137234924,-752.93,0.00035616,17]
[356761614,1743137234950,-500.0,0.00035616,17]
[356761615,1743137234972,-771.1,0.00035616,17]
[356761616,1743137234994,-657.71,0.00035616,17]
[356761617,1743137235016,-500.0,0.00035616,17]
[356761618,1743137235039,-500.0,0.00035616,17]
[356761619,1743137235060,-500.0,0.00035616,17]
[356761620,1743137235082,-1414.0,0.00035616,17]
[356761621,1743137235103,-523.56590954,0.00035616,17]
[356761622,1743137235125,-500.0,0.00035616,17]
[356761623,1743137235146,-500.0,0.00035616,17]
[356761624,1743137235168,-500.0,0.00035616,17]
[356761625,1743137235192,-500.0,0.00035616,2]
[356761626,1743137235214,-500.0,0.00035616,17]
[356761627,1743137235236,-703.73,0.00035616,17]
[356761628,1743137235259,-1113.4,0.00035616,17]
[356761629,1743137235281,-500.0,0.00035616,17]
[356761630,1743137235303,-569.38,0.00035616,17]
[356761631,1743137235326,-500.0,0.00035616,17]
[356761632,1743137235349,-746.76,0.00035616,17]
[356761633,1743137235372,-521.96305277,0.00035616,17]
[356761634,1743137235394,-612.27,0.00035616,17]
[356761635,1743137235415,-500.0,0.00035616,17]
[356761636,1743137235436,-500.0,0.00035616,17]
[356761637,1743137235459,-500.0,0.00035616,17]
[356761638,1743137235481,-500.0,0.00035616,17]
[356761639,1743137235503,-500.0,0.00035616,17]
[356761640,1743137235524,-500.0,0.00035616,17]
[356761641,1743137235545,-500.0,0.00035616,17]
[356761642,1743137235566,-500.0,0.00035616,17]
[356761643,1743137235588,-500.0,0.00035616,17]
[356761644,1743137235610,-500.0,0.00035616,17]
[356761645,1743137235756,-500.0,0.00035616,17]
[356761646,1743137235805,-500.0,0.00035616,17]
[356761647,1743137235830,-761.65,0.00035616,17]
[356761648,1743137235853,-500.0,0.00035616,17]
[356761649,1743137235876,-500.0,0.00035616,17]
[356761650,1743137235898,-500.0,0.00035616,17]
[356761651,1743137235922,-500.0,0.00035616,17]
[356761652,1743137235950,-1388.08,0.00035616,17]
[356761653,1743137235973,-500.0,0.00035616,17]
[356761654,1743137235996,-500.0,0.00035616,17]
[356761655,1743137236023,-500.0,0.00035616,17]
[356761656,1743137236045,-500.0,0.00035616,17]
[356761657,1743137236067,-500.0,0.00035616,17]
[356761658,1743137236088,-2114.56,0.00035616,17]
[356761659,1743137236110,-676.74,0.00035616,17]
[356761660,1743137236132,-500.0,0.00035616,17]
[356761661,1743137236154,-500.0,0.00035616,17]
[356761662,1743137236175,-500.0,0.00035616,17]
[356761663,1743137236201,-500.0,0.00035616,17]
[356761664,1743137236222,-500.0,0.00035616,17]
[356761665,1743137236244,-1821.71,0.00035616,17]
[356761666,1743137236267,-609.54,0.00035616,17]
[356761667,1743137236289,-1235.08,0.00035616,17]
[356761668,1743137236311,-375.06668649,0.00035616,17]
[356761669,1743137236896,-986.08331351,0.00035616,17]
[356761670,1743137236919,-500.0,0.00035616,17]
[356761671,1743137236941,-500.0,0.00035616,17]
[356761672,1743137236961,-500.0,0.00035616,17]
[356761673,1743137236983,-342.21761073,0.00035616,17]
[356761674,1743137237004,-527.06,0.00035616,17]
[356761675,1743137237027,-500.0,0.00035616,17]
[356761676,1743137237047,-500.0,0.00035616,17]
[356761677,1743137237068,-500.0,0.00035616,17]
[356761678,1743137237089,-1308.3,0.00035616,17]
[356761679,1743137237110,-500.0,0.00035616,17]
[356761680,1743137237131,-500.0,0.00035616,17]
[356761681,1743137237152,-500.0,0.00035616,17]
[356761682,1743137237173,-457.580986,0.00035616,17]
[356761683,1743137237197,-356.0,0.00035616,14]
[356761684,1743137237217,-500.0,0.00035616,17]
[356761685,1743137237239,-500.0,0.00035616,17]
[356761686,1743137237261,-151.0,0.00035616,14]
[356761687,1743137237282,-151.0,0.00035616,14]
[356761688,1743137237303,-173.234886,0.00035616,14]
[356761689,1743137237325,-500.0,0.00035616,17]
[356761690,1743137237347,-500.0,0.00035616,17]
[356761691,1743137237368,-500.0,0.00035616,17]
[356761692,1743137237388,-500.0,0.00035616,17]
[356761693,1743137237409,-500.0,0.00035616,17]
[356761694,1743137237429,-500.0,0.00035616,17]
[356761695,1743137237451,-1131.63,0.00035616,17]
[356761696,1743137237472,-500.0,0.00035616,17]
[356761697,1743137237493,-500.0,0.00035616,17]
[356761698,1743137237514,-500.0,0.00035616,17]
[356761699,1743137237534,-500.0,0.00035616,17]
[356761700,1743137237555,-500.0,0.00035616,17]
[356761701,1743137237576,-500.0,0.00035616,17]
[356761702,1743137237598,-789.85,0.00035616,17]
[356761703,1743137237618,-500.0,0.00035616,17]
[356761704,1743137237639,-352.62136902,0.00035616,17]
[356761705,1743137237659,-756.08,0.00035616,17]
[356761706,1743137237681,-500.0,0.00035616,17]
[356761707,1743137237704,-500.0,0.00035616,17]
[356761708,1743137237724,-1360.67,0.00035616,17]
[356761709,1743137237745,-500.0,0.00035616,17]
[356761710,1743137237766,-602.0,0.00035616,17]
[356761711,1743137237786,-500.0,0.00035616,17]
[356761712,1743137237806,-500.0,0.00035616,17]
[356761713,1743137237831,-500.0,0.00035616,17]
[356761714,1743137237852,-500.0,0.00035616,17]
[356761715,1743137237874,-500.0,0.00035616,17]
[356761716,1743137237894,-500.0,0.00035616,17]
[356761717,1743137237916,-500.0,0.00035616,17]
[356761718,1743137237937,-500.0,0.00035616,17]
[356761719,1743137237959,-500.0,0.00035616,17]
[356761720,1743137237980,-500.0,0.00035616,17]
[356761721,1743137238002,-1324.76,0.00035616,17]
[356761722,1743137238024,-500.0,0.00035616,17]
[356761723,1743137238047,-500.0,0.00035616,17]
[356761724,1743137238249,-500.0,0.00035616,17]
[356761725,1743137238271,-500.0,0.00035616,17]
[356761726,1743137238293,-500.0,0.00035616,17]
[356761727,1743137238314,-522.05475509,0.00035616,17]
[356761728,1743137238336,-500.0,0.00035616,17]
[356761729,1743137238358,-500.0,0.00035616,17]
[356761730,1743137238378,-1032.3,0.00035616,17]
[356761731,1743137238399,-500.0,0.00035616,17]
[356761732,1743137238422,-500.0,0.00035616,17]
[356761733,1743137238444,-500.0,0.00035616,17]
[356761734,1743137238465,-500.0,0.00035616,17]
[356761735,1743137238487,-2004.25,0.00035616,17]
[356761736,1743137238507,-500.0,0.00035616,17]
[356761737,1743137238528,-947.49,0.00035616,2]
[356761738,1743137238549,-500.0,0.00035616,17]
[356761739,1743137238570,-599.1,0.00035616,17]
[356761740,1743137238591,-500.0,0.00035616,17]
[356761741,1743137238612,-1071.03,0.00035616,17]
[356761742,1743137238633,-512.66,0.00035616,17]
[356761743,1743137238654,-500.0,0.00035616,17]
[356761744,1743137238674,-519.19423425,0.00035616,17]
[356761745,1743137238698,-500.0,0.00035616,17]
[356761746,1743137238719,-1338.92,0.00035616,17]
[356761747,1743137238740,-610.89551008,0.00035616,17]
[356761748,1743137238760,-500.0,0.00035616,17]
[356761749,1743137238781,-500.0,0.00035616,17]
[356761750,1743137238801,-500.0,0.00035616,17]
[356761751,1743137238824,-500.0,0.00035616,17]
[356761752,1743137238847,-500.0,0.00035616,17]
[356761753,1743137238868,-500.0,0.00035616,17]
[356761754,1743137238890,-500.0,0.00035616,17]
[356761755,1743137238912,-641.85,0.00035616,17]
[356761756,1743137238936,-500.0,0.00035616,17]
[356761757,1743137238962,-500.0,0.00035616,17]
[356761758,1743137238984,-500.0,0.00035616,17]
[356761759,1743137239009,-500.0,0.00035616,17]
[356761760,1743137239032,-1165.07,0.00035616,17]
[356761761,1743137239054,-1077.29,0.00035616,17]
[356761762,1743137239075,-500.0,0.00035616,17]
[356761763,1743137239096,-500.0,0.00035616,17]
[356761764,1743137239117,-2132.21,0.00035616,17]
[356761765,1743137239139,-800.08,0.00035616,17]
[356761766,1743137239160,-500.0,0.00035616,17]
[356761767,1743137239181,-1752.53,0.00035616,17]
[356761768,1743137239206,-500.0,0.00035616,17]
[356761769,1743137239229,-500.0,0.00035616,17]
[356761770,1743137239250,-500.0,0.00035616,17]
[356761771,1743137239273,-500.0,0.00035616,17]
[356761772,1743137239295,-505.88,0.00035616,17]
[356761773,1743137239317,-500.0,0.00035616,17]
[356761774,1743137239338,-500.0,0.00035616,17]
[356761775,1743137239360,-500.0,0.00035616,7]
[356761776,1743137239382,-743.09,0.00035616,17]
[356761777,1743137239403,-754.09,0.00035616,17]
[356761778,1743137239424,-168.92516,0.00035616,14]
[356761779,1743137239447,-500.0,0.00035616,17]
[356761780,1743137239468,-500.0,0.00035616,17]
[356761781,1743137239488,-500.0,0.00035616,17]
[356761782,1743137239509,-500.0,0.00035616,17]
[356761783,1743137239529,-1958.08,0.00035616,17]
[356761784,1743137239550,-699.87,0.00035616,17]
[356761785,1743137239575,-1579.14,0.00035616,17]
[356761786,1743137239596,-500.0,0.00035616,17]
[356761787,1743137239619,-500.0,0.00035616,17]
[356761788,1743137239640,-500.0,0.00035616,17]
[356761789,1743137239662,-525.89,0.00035616,17]
[356761790,1743137239683,-500.0,0.00035616,17]
[356761791,1743137239709,-500.0,0.00035616,17]
[356761792,1743137239730,-712.75,0.00035616,17]
[356761793,1743137239751,-500.0,0.00035616,17]
[356761794,1743137239771,-500.0,0.00035616,17]
[356761795,1743137239791,-500.0,0.00035616,17]
[356761796,1743137239812,-500.0,0.00035616,17]
[356761797,1743137239836,-500.0,0.00035616,17]
[356761798,1743137239858,-500.0,0.00035616,17]
[356761799,1743137239878,-500.0,0.00035616,17]
[356761800,1743137239898,-648.5,0.00035616,17]
[356761801,1743137239921,-500.0,0.00035616,17]
[356761802,1743137239945,-500.0,0.00035616,17]
[356761803,1743137239965,-500.0,0.00035616,17]
[356761804,1743137239986,-889.02,0.00035616,17]
[356761805,1743137240007,-500.0,0.00035616,17]
[356761806,1743137240030,-500.0,0.00035616,17]
[356761807,1743137240051,-680.5,0.00035616,17]
[356761808,1743137240072,-500.0,0.00035616,17]
[356761809,1743137240093,-579.81,0.00035616,17]
[356761810,1743137240114,-500.0,0.00035616,17]
[356761811,1743137240136,-500.0,0.00035616,17]
[356761812,1743137240157,-500.0,0.00035616,17]
[356761813,1743137240177,-500.0,0.00035616,17]
[356761814,1743137240200,-500.0,0.00035616,17]
[356761815,1743137240221,-500.0,0.00035616,17]
[356761816,1743137240243,-500.0,0.00035616,17]
[356761817,1743137240264,-500.0,0.00035616,17]
[356761818,1743137240286,-500.0,0.00035616,17]
[356761819,1743137240310,-500.0,0.00035616,17]
[356761820,1743137240333,-500.0,0.00035616,17]
[356761821,1743137240354,-500.0,0.00035616,17]
[356761822,1743137240375,-500.0,0.00035616,17]
[356761823,1743137240396,-500.0,0.00035616,2]
[356761824,1743137240417,-573.48,0.00035616,17]
[356761825,1743137240437,-500.0,0.00035616,17]
[356761826,1743137240461,-1333.44,0.00035616,17]
[356761827,1743137240621,-2536.53,0.00035616,17]
[356761828,1743137240642,-500.0,0.00035616,17]
[356761829,1743137240663,-4708.2,0.00035616,17]
[356761830,1743137240683,-500.0,0.00035616,17]
[356761831,1743137240704,-1619.54,0.00035616,17]
[356761832,1743137240724,-1432.11,0.00035616,17]
[356761833,1743137240744,-500.0,0.00035616,17]
[356761834,1743137240765,-500.0,0.00035616,17]
[356761835,1743137240786,-500.0,0.00035616,17]
[356761836,1743137240808,-896.4,0.00035616,17]
[356761837,1743137240832,-500.0,0.00035616,17]
[356761838,1743137240853,-500.0,0.00035616,17]
[356761839,1743137240876,-500.0,0.00035616,17]
[356761840,1743137240898,-500.0,0.00035616,17]
[356761841,1743137240922,-1650.23,0.00035616,17]
[356761842,1743137240946,-500.0,0.00035616,17]
[356761843,1743137240966,-767.88,0.00035616,17]
[356761844,1743137240987,-500.0,0.00035616,17]
[356761845,1743137241008,-5149.18,0.00035616,17]
[356761846,1743137241030,-500.0,0.00035616,17]
[356761847,1743137241052,-7375.14,0.00035616,17]
[356761848,1743137241072,-500.0,0.00035616,17]
[356761849,1743137241093,-500.0,0.00035616,17]
[356761850,1743137241114,-1347.16,0.00035616,17]
[356761851,1743137241135,-523.43,0.00035616,17]
[356761852,1743137241155,-500.0,0.00035616,17]
[356761853,1743137241175,-500.0,0.00035616,17]
[356761854,1743137241196,-3720.92,0.00035616,17]
[356761855,1743137241217,-1460.69,0.00035616,17]
[356761856,1743137241236,-500.0,0.00035616,17]
[356761857,1743137241256,-708.88,0.00035616,17]
[356761858,1743137241276,-551.61945404,0.00035616,17]
[356761859,1743137241296,-1385.56,0.00035616,17]
[356761860,1743137241317,-500.0,0.00035616,17]
[356761861,1743137241338,-500.0,0.00035616,17]
[356761862,1743137241358,-630.2,0.00035616,17]
[356761863,1743137241379,-500.0,0.00035616,17]
[356761864,1743137241399,-3899.38,0.00035616,17]
[356761865,1743137241420,-500.0,0.00035616,17]
[356761866,1743137241442,-530.34,0.00035616,17]
[356761867,1743137241466,-151.0,0.00035616,14]
[356761868,1743137241488,-156.278633,0.00035616,14]
[356761869,1743137241510,-500.0,0.00035616,17]
[356761870,1743137241532,-5073.56,0.00035616,17]
[356761871,1743137241553,-500.0,0.00035616,17]
[356761872,1743137241574,-500.0,0.00035616,17]
[356761873,1743137241595,-13207.7,0.00035616,17]
[356761874,1743137241616,-1595.74,0.00035616,17]
[356761875,1743137241639,-500.0,0.00035616,17]
[356761876,1743137241661,-18329.49,0.00035616,17]
[356761877,1743137241682,-1295.5,0.00035616,17]
[356761878,1743137241706,-1000.0,0.00035616,17]
[356761879,1743137241728,-1402.83,0.00035616,17]
[356761880,1743137241751,-2762.38,0.00035616,17]
[356761881,1743137241773,-500.0,0.00035616,17]
[356761882,1743137241796,-2114.39,0.00035616,17]
[356761883,1743137241819,-500.0,0.00035616,17]
[356761884,1743137241841,-500.0,0.00035616,17]
[356761885,1743137241863,-3679.34,0.00035616,17]
[356761886,1743137241886,-901.96,0.00035616,17]
[356761887,1743137241909,-502.54278603,0.00035616,17]
[356761888,1743137241930,-500.0,0.00035616,17]
[356761889,1743137241956,-500.0,0.00035616,17]
[356761890,1743137241978,-227.60241699,0.00035616,17]
[356761891,1743137242000,-500.0,0.00035616,17]
[356761892,1743137242023,-27452.19,0.00035616,17]
[356761893,1743137242044,-500.0,0.00035616,17]
[356761894,1743137242065,-1000.0,0.00035616,30]
[356761895,1743137242084,-1013.42316194,0.00035616,30]
[356761896,1743137242105,-500.0,0.00035616,17]
[356761897,1743137242126,-626.94,0.00035616,17]
[356761898,1743137242147,-500.0,0.00035616,17]
[356761899,1743137242168,-500.0,0.00035616,17]
[356761900,1743137242189,-2137.05,0.00035616,17]
[356761901,1743137242213,-527.89478209,0.00035616,17]
[356761902,1743137242233,-500.0,0.00035616,17]
[356761903,1743137242253,-500.0,0.00035616,17]
[356761904,1743137242274,-1603.71,0.00035616,17]
[356761905,1743137242294,-520.86872541,0.00035616,17]
[356761906,1743137242315,-500.0,0.00035616,17]
[356761907,1743137242335,-803.29,0.00035616,17]
[356761908,1743137242355,-500.0,0.00035616,17]
[356761909,1743137242376,-1048.78,0.00035616,17]
[356761910,1743137242397,-1335.19,0.00035616,17]
[356761911,1743137242419,-500.0,0.00035616,17]
[356761912,1743137242439,-2008.16,0.00035616,17]
[356761913,1743137242464,-1482.65,0.00035616,17]
[356761914,1743137242484,-500.0,0.00035616,17]
[356761915,1743137242505,-500.0,0.00035616,17]
[356761916,1743137242524,-503.77916292,0.00035616,17]
[356761917,1743137242544,-500.0,0.00035616,17]
[356761918,1743137242564,-811.37,0.00035616,17]
[356761919,1743137242585,-885.69,0.00035616,17]
[356761920,1743137242606,-300.0,0.00035616,30]
[356761921,1743137242626,-4026.6,0.00035616,17]
[356761922,1743137242646,-1389.188058,0.00035616,14]
[356761923,1743137242666,-3406.48,0.00035616,17]
[356761924,1743137242686,-1389.188058,0.00035616,14]
[356761925,1743137242834,-1389.188058,0.00035616,14]
[356761926,1743137242857,-1389.188058,0.00035616,14]
[356761927,1743137242880,-1389.188058,0.00035616,14]
[356761928,1743137242904,-9181.68,0.00035616,17]
[356761929,1743137242925,-1389.188058,0.00035616,14]
[356761930,1743137242947,-500.0,0.00035616,17]
[356761931,1743137242971,-1019.77,0.00035616,17]
[356761932,1743137242992,-1389.188058,0.00035616,14]
[356761933,1743137243014,-500.0,0.00035616,17]
[356761934,1743137243036,-1389.188058,0.00035616,14]
[356761935,1743137243056,-500.0,0.00035616,17]
[356761936,1743137243076,-500.0,0.00035616,17]
[356761937,1743137243097,-1389.188058,0.00035616,14]
[356761938,1743137243118,-500.0,0.00035616,17]
[356761939,1743137243139,-1389.188058,0.00035616,14]
[356761940,1743137243160,-1389.188058,0.00035616,14]
[356761941,1743137243181,-1389.188058,0.00035616,14]
[356761942,1743137243204,-20180.9,0.00035616,17]
[356761943,1743137243225,-1389.188058,0.00035616,14]
[356761944,1743137243246,-640.66982149,0.00035616,17]
[356761945,1743137243267,-1389.188058,0.00035616,14]
[356761946,1743137243289,-251.14625568,0.00035616,17]
[356761947,1743137243310,-1389.188058,0.00035616,14]
[356761948,1743137243331,-1389.188058,0.00035616,14]
[356761949,1743137243353,-1389.188058,0.00035616,14]
[356761950,1743137243375,-1389.18806596,0.00035616,14]
[356761951,1743137243397,-500.0,0.00035616,17]
[356761952,1743137243419,-500.0,0.00035616,17]
[356761953,1743137243443,-566.95765724,0.00035616,17]
[356761954,1743137243464,-688.03,0.00035616,17]
[356761955,1743137243486,-2396.98,0.00035616,17]
[356761956,1743137243508,-500.0,0.00035616,17]
[356761957,1743137243531,-500.0,0.00035616,17]
[356761958,1743137243552,-500.0,0.00035616,17]
[356761959,1743137243572,-3356.94,0.00035616,17]
[356761960,1743137243593,-3180.14,0.00035616,17]
[356761961,1743137243614,-997.16,0.00035616,17]
[356761962,1743137243635,-500.0,0.00035616,17]
[356761963,1743137243656,-500.0,0.00035616,17]
[356761964,1743137243676,-500.0,0.00035616,17]
[356761965,1743137243698,-249706.09,0.00035616,7]
[356761966,1743137243720,-500.0,0.00035616,17]
[356761967,1743137243742,-923.12,0.00035616,17]
[356761968,1743137243764,-500.0,0.00035616,17]
[356761969,1743137243785,-165.74831432,0.00035616,17]
[356761970,1743137243806,-349.53076945,0.00035616,17]
[356761971,1743137243832,-7240.24,0.00035616,17]
[356761972,1743137243853,-812.1,0.00035616,17]
[356761973,1743137243876,-500.0,0.00035616,17]
[356761974,1743137243899,-8776.71,0.00035616,17]
[356761975,1743137243922,-500.0,0.00035616,17]
[356761976,1743137243943,-500.0,0.00035616,2]
[356761977,1743137243966,-9786.49,0.00035616,17]
[356761978,1743137243989,-6940.59,0.00035616,17]
[356761979,1743137244010,-862.65,0.00035616,17]